[Event "Nakhchivan Open 2024"]
[Site "Nakhchivan"]
[Date "2024.01.13"]
[Round "6.4"]
[White "Gulumov, Muthat"]
[Black "Aliyev, Aykhan"]
[Result "1/2-1/2"]
[ECO "C42"]
[WhiteElo "1843"]
[BlackElo "1962"]
[Annotator "TA"]
[PlyCount "78"]
[EventDate "2024.01.11"]
[EventType "swiss"]
[EventCountry "AZE"]
[SourceTitle "playchess.com"]
[Source "ChessBase"]
[SourceQuality "1"]
[TimeControl "5400+30"]

{[%evp 15,78,28,25,29,29,25,31,1,21,15,19,25,20,17,39,6,59,43,74,23,19,31,29,18,44,56,70,50,32,30,84,62,119,118,135,134,138,121,145,125,141,123,158,112,104,53,64,12,14,6,8,0,0,0,0,0,0,0,0,0,0,0,11,0,0]} 1. e4 {[%emt 0:00:02]} e5 {[%emt 0:08:53]} 2. Nf3 {[%emt 0:00:06]} Nf6 {[%emt 0:00:06]} 3. Nxe5 {[%emt 0:00:23]} d6 {[%emt 0:00:07]} 4. Nf3 {[%emt 0:00:04]} Nxe4 {[%emt 0:00:14]} 5. Nc3 {[%emt 0:00:05]} Nxc3 {[%emt 0:00:09]} 6. dxc3 {[%emt 0:00:04]} Be7 {[%emt 0:00:14]} 7. Be3 {[%emt 0:00:05]} Nc6 {[%emt 0:00:50]} 8. Qd2 {[%emt 0:00:04]} Be6 {[%emt 0:01:00]} 9. O-O-O {[%emt 0:00:15]} Bf6 {[%emt 0:00:18]} 10. Kb1 {[%emt 0:00:32]} Qd7 {[%emt 0:01:12]} 11. Nd4 {[%emt 0:00:47] White is slightly better.} Nxd4 {[%emt 0:00:22]} 12. Bxd4 {[%emt 0:00:11]} Bxd4 {[%emt 0:00:08]} 13. Qxd4 {[%emt 0:00:56]} O-O {[%emt 0:00:26]} 14. Bd3 {[%emt 0:00:59]} Qc6 {[%emt 0:10:42]} 15. Qh4 {[%emt 0:02:44][%csl Gd3][%cal Rh4h7] [#]} g6 {[%emt 0:04:00]} (15... h6 $11) 16. Qh6 $1 $14 {[%emt 0:01:16]} Qd5 {[%emt 0:15:54]} (16... Qxg2 $2 17. h4 Bd5 (17... Qxf2 $2 18. h5 $18) 18. h5 Qxh1 19. Rxh1 Bxh1 20. hxg6 fxg6 21. Qxh1 $18) 17. c4 {[%emt 0:00:50]} (17. h4 $16 {Hoping for h5.} Qxa2+ (17... Qxg2 $2 18. h5 $18) 18. Kc1) 17... Qe5 $11 {[%emt 0:01:30]} (17... Qxg2 $2 18. h4 Qg4 19. h5 $18) 18. h4 {[%emt 0:00:37]} Qg7 {[%emt 0:20:36]} 19. Qd2 {[%emt 0:03:25]} a6 {[%emt 0:05:16][%cal Ob7b5]} 20. h5 {[%emt 0:01:37]} b5 {[%emt 0:00:57]} 21. hxg6 {[%emt 0:00:43]} (21. cxb5 axb5 22. a3 (22. Bxb5 $2 Bxa2+ 23. Kc1 Bc4 $19) 22... b4 23. axb4 (23. Qxb4 $2 Rfb8 $19) 23... Ba2+ 24. Kc1 Bc4 $15) 21... fxg6 {[%emt 0:05:01]} 22. Rh4 {[%emt 0:08:21]} bxc4 {[%emt 0:04:01]} (22... Qf6 $11 23. Rdh1 bxc4) 23. Bxc4 $16 {[%emt 0:00:35]} Bxc4 {[%emt 0:00:58]} (23... Qf6 $14) 24. Rxc4 {[%emt 0:00:06]} Qf7 {[%emt 0:00:49]} 25. Qc3 {[%emt 0:00:48]} Qf6 {[%emt 0:11:01]} 26. Qb3 {[%emt 0:02:12] Threatens to win with Rf4+.} Qf7 {[%emt 0:00:05] [#]} 27. f3 $1 {[%emt 0:01:35]} Rfc8 {[%emt 0:06:58]} 28. Rh1 {[%emt 0:03:27][%cal Oh1h7] White is more active.} Rab8 {[%emt 0:01:05]} 29. Qc3 {[%emt 0:00:51]} ({White should try} 29. Qa4) 29... Qg7 {[%emt 0:00:22]} 30. Qxg7+ {[%emt 0:01:56]} (30. Qa3 {is interesting.} Re8 31. b3 Rb6 32. Qa5) 30... Kxg7 {[%emt 0:00:02][%mdl 4096] Endgame. KRR-KRR} 31. Rch4 {[%emt 0:00:05]} (31. Re1 $14) 31... h5 $11 {[%emt 0:00:53] The position is equal.} 32. g4 {[%emt 0:00:15]} hxg4 $1 {[%emt 0:00:22]} 33. fxg4 {[%emt 0:01:23]} (33. Rh7+ Kf6 34. fxg4 Rb4 $17) 33... Kf6 {[%emt 0:00:39]} (33... Rh8 34. Rxh8 Rxh8 35. Rxh8 Kxh8 36. b4) 34. Rh7 {[%emt 0:00:54]} Kg5 {[%emt 0:00:13]} 35. b3 {[%emt 0:00:59]} Rb5 {[%emt 0:00:52]} 36. a4 {[%emt 0:00:29]} Re5 {[%emt 0:00:14]} 37. Rg7 {[%emt 0:00:31]} Re4 {[%emt 0:01:33]} 38. Rg1 {[%emt 0:03:04]} c5 {[%emt 0:00:18]} 39. Rd1 {[%emt 0:02:05]} Rc6 {[%emt 0:00:47] Weighted Error Value: White=0.15 (very precise) /Black=0.15 (very precise) .  Mistake:       	White=3     	Black=3      Inaccurate:     	White=3     	Black=2      OK:         	White=9     	Black=12     Strong:       	White=1     	Black=1} 1/2-1/2

[Event "Nakhchivan Open 2024"]
[Site "Nakhchivan"]
[Date "2024.01.13"]
[Round "6.5"]
[White "Kul, Ozdemir Efe"]
[Black "Babayeva, Nasrin"]
[Result "1-0"]
[ECO "A04"]
[WhiteElo "2223"]
[BlackElo "1806"]
[Annotator "TA"]
[PlyCount "93"]
[EventDate "2024.01.11"]
[EventType "swiss"]
[EventCountry "AZE"]
[SourceTitle "playchess.com"]
[Source "ChessBase"]
[SourceQuality "1"]
[TimeControl "5400+30"]

{[%evp 23,93,0,8,0,16,0,0,-17,20,18,22,0,2,0,0,-6,-12,-12,44,0,0,0,5,0,45,10,12,10,75,78,77,70,74,77,74,59,87,61,79,81,91,95,145,154,166,138,222,212,325,308,6319,1805,1491,548,522,518,833,612,5397,518,521,510,458,283,770,702,702,699,689,669,642,639]} 1. Nf3 {[%emt 0:00:11]} d6 {[%emt 0:00:09]} 2. g3 {[%emt 0:00:19]} e5 {[%emt 0:00:09]} 3. Bg2 {[%emt 0:00:22]} f5 {[%emt 0:00:08]} 4. c4 {[%emt 0:01:10]} Nf6 {[%emt 0:00:25]} 5. Nc3 {[%emt 0:00:12]} g6 {[%emt 0:00:45]} 6. d3 {[%emt 0:00:32]} Bg7 {[%emt 0:00:21]} 7. O-O {[%emt 0:00:29]} O-O {[%emt 0:00:10]} 8. Rb1 {[%emt 0:00:24]} a5 {[%emt 0:00:53]} 9. a3 {[%emt 0:00:20][%cal Ba2a3,Ba3b4][%mdl 32]} Nc6 {[%emt 0:00:33]} 10. b4 {[%emt 0:01:06]} Ne7 {[%emt 0:02:28]} 11. Bd2 {[%emt 0:05:45]} axb4 {[%emt 0:05:02]} 12. axb4 {[%emt 0:00:12]} h6 {[%emt 0:01:19]} 13. Ne1 {[%emt 0:06:28]} c6 {[%emt 0:00:35]} 14. b5 {[%emt 0:05:27]} Be6 {[%emt 0:02:54]} 15. Na4 {[%emt 0:05:14] The position is equal.} e4 {[%emt 0:07:42]} 16. bxc6 {[%emt 0:06:46]} bxc6 {[%emt 0:00:25]} 17. c5 {[%emt 0:03:41]} Ned5 {[%emt 0:02:41]} 18. cxd6 {[%emt 0:01:46]} Qxd6 {[%emt 0:00:13]} 19. Nb6 {[%emt 0:02:13]} Nxb6 {[%emt 0:07:17]} 20. Rxb6 {[%emt 0:00:03]} Nd5 {[%emt 0:01:13]} (20... Qc7 $11 21. Rb2 Ng4) 21. Rb7 {[%emt 0:00:51]} Bc8 {[%emt 0:01:14]} 22. Rb1 {[%emt 0:02:32]} Rd8 {[%emt 0:06:07]} 23. Qc1 {[%emt 0:03:49]} (23. dxe4 $2 Nc3 24. Qb3+ Be6 $19) 23... Re8 {[%emt 0:07:41]} 24. dxe4 {[%emt 0:16:33]} (24. Bxh6 Nc3 25. Rb2 Na2 $11) 24... fxe4 {[%emt 0:00:15]} 25. Nc2 $1 {[%emt 0:00:40][%cal Of1d1]} Bf5 {[%emt 0:08:12]} (25... Kh7 $11) 26. Ne3 $1 $16 {[%emt 0:02:20]} (26. Bxh6 $6 Nc3 27. Qe3 Nxb1 28. Bxg7 Nd2 $11) 26... Nxe3 {[%emt 0:02:59]} 27. Bxe3 {[%emt 0:00:12]} g5 {[%emt 0:00:28]} 28. Rd1 {[%emt 0:02:40]} Qe6 {[%emt 0:00:19]} 29. Qc5 {[%emt 0:01:28]} Red8 {[%emt 0:01:53] Inhibits Rd6. Black is on the road to losing.} 30. Rdc1 {[%emt 0:03:08]} Rd5 {[%emt 0:00:34] [#]} 31. Qb6 {[%emt 0:04:58]} (31. Qxc6 $2 Rd1+ 32. Rxd1 Qxc6 $19) 31... Rad8 {[%emt 0:06:00]} 32. h3 {[%emt 0:00:38]} (32. Qxc6 $2 Rd1+ 33. Rxd1 Rxd1+ (33... Qxc6 $2 34. Rxd8+ Kf7 35. Rb6 $18) 34. Rxd1 Qxc6 $19) 32... R8d6 {[%emt 0:06:44]} ({Black should try} 32... Rc8) 33. Kh2 {[%emt 0:00:44]} Qg6 {[%emt 0:03:45]} 34. Qb3 {[%emt 0:01:30]} Be6 {[%emt 0:01:15]} (34... Qe8 $16 35. Qa2 Re6) 35. Qc2 {[%emt 0:00:39]} Qh5 {[%emt 0:02:17]} (35... Rd8 $142 36. Rb6 (36. Bxe4 Qh5 $18) (36. Qxc6 Bf5 $18) 36... R5d6 37. Bxe4 (37. Rxc6 Rxc6 38. Qxc6 Bf5 $18) (37. Qxe4 Qxe4 38. Bxe4 Bd5 $18) 37... Qf7 38. Bxc6 (38. Rxc6 Rxc6 39. Bxc6 g4 $16) 38... Rd2) 36. Qxe4 $18 {[%emt 0:05:53]} (36. Bxe4 $6 Qxh3+ 37. Kg1 Rd8 $18) 36... Qxe2 $2 {[%emt 0:07:22] [#]} (36... Qf7 37. Rb8+ Rd8) 37. Qg6 {[%emt 0:06:14]} (37. Rb8+ $142 Kf7 38. Qh7) 37... Rb5 {[%emt 0:05:04]} 38. Qe8+ {[%emt 0:01:51]} (38. Bxc6 $142 Qd3 39. Be4 (39. Qxd3 Rxd3 40. Rxb5 g4 $18)) 38... Bf8 {[%emt 0:01:47][%cal Bg7f8,Bf8d6,Bd6c5][%mdl 32]} 39. Rxb5 {[%emt 0:02:39]} (39. Bxc6 Rf5 40. Re1 Rxf2+ 41. Kg1 (41. Bxf2 Qxf2+ 42. Bg2 Bf7 $16) 41... Bf7 $18) (39. Rxc6 Bd7 40. Qa8 Bxc6 41. Bxc6 Qxe3 (41... Rxb1 42. Bd5+ Rxd5 43. Qxd5+ Kh8 44. Qe5+ Bg7 45. Qe8+ Kh7 46. Qe4+ Kg8 47. Qxb1 $16) 42. Qa2+ (42. Rxb5 $2 Qxf2+ 43. Bg2 Rd1 $19) (42. fxe3 Rd2+ 43. Bg2 Rxb1 $11) 42... Qe6 43. Qxe6+ Rxe6 $11) 39... Qxb5 {[%emt 0:02:35]} (39... Bf7 $142 40. Qa8 (40. Rxc6 $2 Bxe8 41. Rxd6 Bxd6 $19) (40. Rxg5+ hxg5 41. Qe5 Qh5 $18) 40... Qxb5) 40. Bc5 {[%emt 0:00:49]} ({Weaker is} 40. Bxc6 Qf5 $16) (40. Rxc6 Bf7 (40... Bd7 41. Qxf8+ Kxf8 42. Rxd6 $16) 41. Qc8 Rxc6 42. Bxc6 Qc4 $16) 40... Bf7 41. Qa8 {[%emt 0:00:30]} (41. Bd5 $142 cxd5 42. Qxb5) 41... Kg7 {[%emt 0:04:55]} 42. Bxd6 {[%emt 0:00:24]} Bxd6 {[%emt 0:00:07]} 43. Qxc6 {[%emt 0:00:18]} Qb8 {[%emt 0:01:27]} (43... Qxc6 44. Rxc6 (44. Bxc6 h5 $18) 44... Be7) 44. Qd7 {[%emt 0:00:11] White is clearly winning.} Qb2 {[%emt 0:01:13]} 45. Rd1 {[%emt 0:01:29]} Bc5 {[%emt 0:02:19]} 46. Rd2 {[%emt 0:00:14]} Qf6 {[%emt 0:01:00]} 47. Bd5 {[%emt 0:00:42] Weighted Error Value: White=0.55/Black=0.24 (precise) .  Mistake:       	White=1     	Black=8      Inaccurate:     	White=3     	Black=4      OK:         	White=7     	Black=8      Best:        	---       	Black=1      Strong:       	White=2     	---} 1-0

[Event "Nakhchivan Open 2024"]
[Site "Nakhchivan"]
[Date "2024.01.13"]
[Round "6.6"]
[White "Hasanov, Ramal"]
[Black "Mamedjarova, Zeinab"]
[Result "0-1"]
[ECO "C41"]
[WhiteElo "1429"]
[BlackElo "2173"]
[Annotator "RC"]
[PlyCount "150"]
[EventDate "2024.01.11"]
[EventType "swiss"]
[EventCountry "AZE"]
[SourceTitle "playchess.com"]
[Source "ChessBase"]
[SourceQuality "1"]
[TimeControl "5400+30"]

1. e4 {[%emt 0:00:02]} e5 {[%emt 0:00:43]} 2. Nf3 {[%emt 0:00:14]} d6 {[%emt 0:00:33]} 3. Be2 {[%emt 0:01:16]} Nf6 {[%emt 0:00:04]} 4. Nc3 {[%emt 0:01:21]} Be7 {[%emt 0:00:04]} 5. d4 {[%emt 0:01:55]} exd4 {[%emt 0:00:04]} 6. Nxd4 {[%emt 0:00:25]} O-O {[%emt 0:00:04]} 7. O-O {[%emt 0:02:01]} Re8 {[%emt 0:00:12]} 8. Re1 {[%emt 0:04:09]} h6 {[%emt 0:02:31]} 9. f4 {[%emt 0:04:35]} Bf8 {[%emt 0:00:48]} 10. Bf3 {[%emt 0:04:59]} c6 {[%emt 0:00:09]} 11. Kh1 {[%emt 0:04:20]} a5 {[%emt 0:02:28]} 12. a4 {[%emt 0:03:12]} Na6 {[%emt 0:00:19]} 13. e5 {[%emt 0:04:18]} Nh7 {[%emt 0:02:10]} 14. Nb3 {[%emt 0:14:06]} Nb4 {[%emt 0:01:49]} 15. Na2 {[%emt 0:05:21]} Nxa2 {[%emt 0:06:50]} 16. Rxa2 {[%emt 0:00:07]} Qc7 {[%emt 0:01:08]} 17. exd6 {[%emt 0:05:46]} Rxe1+ {[%emt 0:00:09]} 18. Qxe1 {[%emt 0:00:05]} Bxd6 {[%emt 0:00:10]} 19. Qg3 {[%emt 0:02:52]} Ng5 {[%emt 0:02:26]} 20. Nd4 {[%emt 0:03:48]} Nxf3 {[%emt 0:01:41]} 21. Qxf3 {[%emt 0:00:50]} Bd7 22. Bd2 {[%emt 0:03:41]} Re8 {[%emt 0:05:41]} 23. Ra1 {[%emt 0:01:09]} Qd8 {[%emt 0:03:01]} 24. Re1 {[%emt 0:06:38]} Rxe1+ {[%emt 0:07:35]} 25. Bxe1 {[%emt 0:00:08]} Qf6 {[%emt 0:04:14]} 26. Bc3 {[%emt 0:01:06]} Qxf4 {[%emt 0:00:17]} 27. Qxf4 {[%emt 0:00:11]} Bxf4 {[%emt 0:00:01]} 28. Bxa5 {[%emt 0:00:20]} c5 {[%emt 0:01:35]} 29. Nb3 {[%emt 0:04:28]} c4 {[%emt 0:01:43]} 30. Nc5 {[%emt 0:00:44]} Bc6 {[%emt 0:00:28]} 31. b3 {[%emt 0:01:08]} Be3 {[%emt 0:06:10]} 32. Bb6 {[%emt 0:05:50]} cxb3 {[%emt 0:01:30]} 33. cxb3 {[%emt 0:00:29]} f5 {[%emt 0:00:18]} 34. a5 {[%emt 0:01:00]} f4 {[%emt 0:00:27]} 35. Nd3 {[%emt 0:00:42]} Bxb6 {[%emt 0:00:53]} 36. axb6 {[%emt 0:00:04]} g5 {[%emt 0:00:10]} 37. Kg1 {[%emt 0:02:28]} Kg7 {[%emt 0:00:41]} 38. Kf2 {[%emt 0:01:08]} Kf6 {[%emt 0:00:18]} 39. g3 {[%emt 0:00:48]} Be4 {[%emt 0:04:16]} 40. Nc5 {[%emt 0:00:58]} Kf5 {[%emt 0:02:13]} 41. b4 {[%emt 0:05:53]} Bc6 {[%emt 0:01:21]} 42. Nb3 {[%emt 0:00:25]} Bd5 {[%emt 0:00:59]} 43. Nc5 {[%emt 0:00:52]} Kg4 {[%emt 0:00:49]} 44. Nd3 {[%emt 0:01:49]} fxg3+ {[%emt 0:01:26]} 45. hxg3 {[%emt 0:00:09]} h5 {[%emt 0:00:23]} 46. Ne5+ {[%emt 0:01:29]} Kf5 {[%emt 0:00:18]} 47. Nd3 {[%emt 0:00:44]} Ke4 {[%emt 0:00:50]} 48. Nc5+ {[%emt 0:00:52]} Kd4 {[%emt 0:02:30]} 49. Nd7 {[%emt 0:00:58]} Kc4 {[%emt 0:06:18]} 50. Nf6 {[%emt 0:00:25]} h4 {[%emt 0:00:31]} 51. gxh4 {[%emt 0:00:25]} gxh4 {[%emt 0:00:02]} 52. Kg1 {[%emt 0:01:32]} Be6 {[%emt 0:06:58]} 53. Ne4 {[%emt 0:01:22]} Kb5 {[%emt 0:01:29]} 54. Nc5 {[%emt 0:00:51]} Bc8 {[%emt 0:00:13]} 55. Kh2 {[%emt 0:00:43]} Kxb6 {[%emt 0:00:16]} 56. Ne4 {[%emt 0:00:30]} Be6 {[%emt 0:01:43]} 57. Nc5 {[%emt 0:00:34]} Bf5 {[%emt 0:00:08]} 58. Nb3 {[%emt 0:00:21]} Bg4 {[%emt 0:00:27]} 59. Nd4 {[%emt 0:00:21]} Kc7 {[%emt 0:00:29]} 60. Nb5+ {[%emt 0:00:29]} Kc6 {[%emt 0:01:05]} 61. Nd4+ {[%emt 0:00:13]} Kd5 {[%emt 0:00:04]} 62. Nc2 {[%emt 0:00:13]} Bd7 {[%emt 0:00:30]} 63. Ne3+ {[%emt 0:01:26]} Kd4 {[%emt 0:00:14]} 64. Nc2+ {[%emt 0:00:31]} Kc3 {[%emt 0:00:11]} 65. Ne3 {[%emt 0:00:20]} Kxb4 {[%emt 0:00:10]} 66. Nd5+ {[%emt 0:00:17]} Kc5 {[%emt 0:00:22]} 67. Nc3 {[%emt 0:00:15]} b5 {[%emt 0:00:14]} 68. Ne4+ {[%emt 0:00:28]} Kd4 {[%emt 0:00:16]} 69. Nd2 {[%emt 0:00:10]} Ke3 {[%emt 0:04:49]} 70. Nb3 {[%emt 0:00:19]} b4 {[%emt 0:00:55]} 71. Kg2 {[%emt 0:00:13]} Bf5 {[%emt 0:01:05]} 72. Nc5 {[%emt 0:00:12]} Kd4 {[%emt 0:00:18]} 73. Nb3+ {[%emt 0:00:07]} Kc3 {[%emt 0:00:10]} 74. Nc5 {[%emt 0:00:07]} b3 {[%emt 0:00:13]} 75. Nxb3 {[%emt 0:00:13]} Kxb3 {[%emt 0:00:01]} 0-1

[Event "Nakhchivan Open 2024"]
[Site "Nakhchivan"]
[Date "2024.01.14"]
[Round "7.1"]
[White "Ahmadov, Fariz"]
[Black "Gasimov, Parviz"]
[Result "1-0"]
[ECO "D02"]
[WhiteElo "2193"]
[BlackElo "2362"]
[Annotator "RC"]
[PlyCount "105"]
[EventDate "2024.01.11"]
[EventType "swiss"]
[EventCountry "AZE"]
[SourceTitle "playchess.com"]
[Source "ChessBase"]
[SourceQuality "1"]
[TimeControl "5400+30"]

1. d4 {[%emt 0:00:14]} d5 {[%emt 0:00:48]} 2. Nf3 {[%emt 0:00:46]} Nf6 {[%emt 0:00:10]} 3. g3 {[%emt 0:00:19]} e6 {[%emt 0:00:46]} 4. Bg2 {[%emt 0:00:23]} b5 {[%emt 0:03:49]} 5. O-O {[%emt 0:00:25]} Bb7 {[%emt 0:01:35]} 6. a4 {[%emt 0:03:45]} b4 {[%emt 0:00:28]} 7. a5 {[%emt 0:00:40]} Be7 {[%emt 0:17:22]} 8. Ne5 {[%emt 0:02:07]} O-O {[%emt 0:03:31]} 9. Nd2 {[%emt 0:01:58]} c5 {[%emt 0:08:10]} 10. dxc5 {[%emt 0:00:39]} Bxc5 {[%emt 0:00:38]} 11. Nd3 {[%emt 0:03:24]} Be7 {[%emt 0:05:03]} 12. Nb3 {[%emt 0:00:26]} Na6 {[%emt 0:01:00]} 13. Be3 {[%emt 0:00:25]} Ne4 {[%emt 0:08:03]} 14. Bd4 {[%emt 0:05:16]} Qc7 {[%emt 0:04:27]} 15. Rc1 {[%emt 0:06:04]} Rfc8 {[%emt 0:02:55]} 16. Qe1 {[%emt 0:03:00]} Qc4 {[%emt 0:08:39]} 17. f4 {[%emt 0:04:04]} f6 {[%emt 0:08:54]} 18. e3 {[%emt 0:03:18]} Bc6 {[%emt 0:06:22]} 19. Rf3 {[%emt 0:10:35]} Bb5 {[%emt 0:01:04]} 20. g4 {[%emt 0:01:50]} Qc6 {[%emt 0:01:55]} 21. g5 {[%emt 0:01:03]} fxg5 {[%emt 0:04:07]} 22. Ne5 {[%emt 0:01:05]} Qe8 {[%emt 0:00:18]} 23. fxg5 {[%emt 0:00:48]} Nxg5 {[%emt 0:02:31]} 24. Rf4 {[%emt 0:02:05]} Nc5 {[%emt 0:04:17]} 25. Nxc5 {[%emt 0:01:50]} Bxc5 {[%emt 0:00:02]} 26. Bxc5 {[%emt 0:00:57]} Rxc5 {[%emt 0:00:04]} 27. Qxb4 {[%emt 0:01:20]} Rac8 {[%emt 0:00:44]} 28. c3 {[%emt 0:01:25]} Qh5 {[%emt 0:01:14]} 29. Qd4 {[%emt 0:06:52]} R5c7 {[%emt 0:01:56]} 30. Rc2 {[%emt 0:04:49]} Nf7 {[%emt 0:01:23]} 31. Nxf7 {[%emt 0:00:26]} Rxf7 {[%emt 0:00:05]} 32. Rxf7 {[%emt 0:00:41]} Qxf7 {[%emt 0:00:05]} 33. Rf2 {[%emt 0:00:35]} Qd7 {[%emt 0:02:00]} 34. h4 {[%emt 0:01:36]} Rf8 {[%emt 0:01:31]} 35. Rxf8+ {[%emt 0:00:24]} Kxf8 {[%emt 0:00:03]} 36. Qe5 {[%emt 0:00:22]} Bd3 {[%emt 0:01:00]} 37. Bh3 {[%emt 0:00:23]} Kf7 {[%emt 0:00:11]} 38. Qf4+ {[%emt 0:02:19]} Ke8 {[%emt 0:00:07]} 39. Qd4 {[%emt 0:01:42]} Be4 {[%emt 0:00:39]} 40. Qe5 {[%emt 0:01:23]} Kf7 {[%emt 0:00:10]} 41. c4 {[%emt 0:01:14]} Qe7 {[%emt 0:02:09]} 42. b4 {[%emt 0:05:18]} Qxh4 {[%emt 0:00:42]} 43. Qxe6+ {[%emt 0:01:20]} Kf8 {[%emt 0:00:02]} 44. Qd6+ {[%emt 0:00:31]} Qe7 {[%emt 0:00:41]} 45. Qf4+ {[%emt 0:01:29]} Kg8 {[%emt 0:00:39]} 46. c5 {[%emt 0:00:23]} d4 {[%emt 0:00:40]} 47. exd4 {[%emt 0:00:16]} h6 {[%emt 0:00:30]} 48. b5 {[%emt 0:01:56]} Qe8 {[%emt 0:00:29]} 49. Qe5 {[%emt 0:01:25]} Qg6+ {[%emt 0:00:18]} 50. Kh2 {[%emt 0:00:09]} Bf3 {[%emt 0:00:41]} 51. Qe6+ {[%emt 0:00:22]} Qxe6 {[%emt 0:00:13]} 52. Bxe6+ {[%emt 0:00:04]} Kf8 {[%emt 0:00:03]} 53. c6 {[%emt 0:00:08]} 1-0

[Event "Nakhchivan Open 2024"]
[Site "Nakhchivan"]
[Date "2024.01.14"]
[Round "7.2"]
[White "Hasanzade, Toghrul"]
[Black "Hasanli, Rza"]
[Result "1-0"]
[ECO "C77"]
[WhiteElo "2329"]
[BlackElo "1622"]
[Annotator "RC"]
[PlyCount "121"]
[EventDate "2024.01.11"]
[EventType "swiss"]
[EventCountry "AZE"]
[SourceTitle "playchess.com"]
[Source "ChessBase"]
[SourceQuality "1"]
[TimeControl "5400+30"]

1. e4 {[%emt 0:01:43]} e5 {[%emt 0:00:09]} 2. Nf3 {[%emt 0:00:15]} Nc6 {[%emt 0:00:08]} 3. Bb5 {[%emt 0:00:34]} a6 {[%emt 0:00:09]} 4. Ba4 {[%emt 0:00:04]} Nf6 {[%emt 0:00:07]} 5. d3 {[%emt 0:00:10]} b5 {[%emt 0:01:41]} 6. Bb3 {[%emt 0:00:05]} Bc5 {[%emt 0:00:19]} 7. O-O {[%emt 0:00:30]} d6 {[%emt 0:00:37]} 8. c3 {[%emt 0:00:59]} h6 {[%emt 0:00:58]} 9. a4 {[%emt 0:05:10]} Bd7 {[%emt 0:00:18]} 10. Nbd2 {[%emt 0:04:38]} O-O {[%emt 0:00:25]} 11. Re1 {[%emt 0:00:41]} Bb6 {[%emt 0:00:44]} 12. Nf1 {[%emt 0:01:48]} Na5 {[%emt 0:13:00]} 13. Bc2 {[%emt 0:01:58]} c5 {[%emt 0:00:07]} 14. Ng3 {[%emt 0:03:19]} b4 {[%emt 0:00:54]} 15. d4 {[%emt 0:02:36]} cxd4 {[%emt 0:01:50]} 16. cxd4 {[%emt 0:00:38]} Nc6 {[%emt 0:00:39]} 17. dxe5 {[%emt 0:13:47]} dxe5 {[%emt 0:01:36]} 18. Be3 {[%emt 0:02:44]} Bxe3 {[%emt 0:01:05]} 19. fxe3 {[%emt 0:00:10]} Be6 {[%emt 0:02:39]} 20. Qe2 {[%emt 0:02:41]} Qb6 {[%emt 0:02:30]} 21. Rac1 {[%emt 0:07:19]} Nd7 {[%emt 0:15:23]} 22. Bd3 {[%emt 0:03:07]} Nc5 {[%emt 0:01:41]} 23. Bc4 {[%emt 0:00:18]} g6 {[%emt 0:11:27]} 24. a5 {[%emt 0:10:37]} Nxa5 {[%emt 0:05:07]} 25. Bxe6 {[%emt 0:00:25]} Nxe6 {[%emt 0:00:13]} 26. Nxe5 {[%emt 0:00:39]} Qb5 {[%emt 0:01:05]} 27. Qxb5 {[%emt 0:07:47]} axb5 {[%emt 0:00:07]} 28. h4 {[%emt 0:02:12]} h5 {[%emt 0:01:15]} 29. Ne2 {[%emt 0:03:02]} Nb3 {[%emt 0:01:10]} 30. Rc6 {[%emt 0:02:04]} Ra2 {[%emt 0:06:16]} 31. Nxg6 {[%emt 0:02:03]} Re8 {[%emt 0:02:37]} 32. Ngf4 {[%emt 0:00:53]} Nxf4 {[%emt 0:01:06]} 33. Nxf4 {[%emt 0:00:27]} Rxe4 {[%emt 0:00:49]} 34. Rd1 {[%emt 0:05:23]} Ra1 {[%emt 0:09:35]} 35. Rxa1 {[%emt 0:03:25]} Nxa1 {[%emt 0:00:08]} 36. Kf2 {[%emt 0:01:55]} Nb3 {[%emt 0:01:09]} 37. g3 {[%emt 0:01:42]} Rc4 {[%emt 0:02:54]} 38. Rxc4 {[%emt 0:02:27]} bxc4 {[%emt 0:00:06]} 39. Nd5 {[%emt 0:00:03]} c3 {[%emt 0:00:13]} 40. bxc3 {[%emt 0:00:05]} bxc3 {[%emt 0:00:06]} 41. Nxc3 {[%emt 0:00:02]} Nc5 {[%emt 0:01:46]} 42. Kf3 {[%emt 0:00:31]} Kg7 {[%emt 0:00:12]} 43. Kf4 {[%emt 0:02:44]} Kg6 {[%emt 0:00:12]} 44. Nd5 {[%emt 0:00:35]} Nd3+ {[%emt 0:01:33]} 45. Ke4 {[%emt 0:00:26]} Nf2+ {[%emt 0:00:48]} 46. Kf3 {[%emt 0:00:05]} Nd1 {[%emt 0:00:37]} 47. Kf4 {[%emt 0:01:15]} Nf2 {[%emt 0:00:52]} 48. e4 {[%emt 0:01:21]} f6 {[%emt 0:02:05]} 49. Ke3 {[%emt 0:01:38]} Ng4+ {[%emt 0:00:52]} 50. Kd4 {[%emt 0:00:07]} Nf2 {[%emt 0:06:31]} 51. Nf4+ {[%emt 0:00:13]} Kh6 {[%emt 0:00:08]} 52. Ke3 {[%emt 0:00:50]} Ng4+ {[%emt 0:00:14]} 53. Kd3 {[%emt 0:00:06]} Ne5+ {[%emt 0:01:23]} 54. Kd4 {[%emt 0:00:06]} Ng4 {[%emt 0:00:08]} 55. Nd3 {[%emt 0:01:03]} Kg6 {[%emt 0:01:06]} 56. Kd5 {[%emt 0:00:37]} Ne3+ {[%emt 0:02:36]} 57. Ke6 {[%emt 0:00:58]} Ng4 {[%emt 0:01:01]} 58. Nf4+ {[%emt 0:00:21]} Kh6 {[%emt 0:00:10]} 59. Kf5 {[%emt 0:00:39]} Nf2 {[%emt 0:02:04]} 60. Nd5 {[%emt 0:00:14]} Nh1 {[%emt 0:01:19]} 61. Kf4 {[%emt 0:00:23]} 1-0